[Event "Titled Tuesday Blitz May 30 Early 2023"]
[White "Samaganova, Aleksandra"]
[Black "Sai Han Thiha"]
[WhiteFideId "13800221"]
[BlackFideId "13012290"]
[WhiteElo "1858"]
[BlackElo "1954"]
[Result "0-1"]
[Round "11"]
[TimeControl "180+2"]
[Date "2023.05.30"]
[WhiteClock "0:00:05"]
[BlackClock "0:00:09"]

1. c4 {[%clk 0:03:00]}  Nf6 {[%clk 0:03:00]} 2. Nc3 {[%clk 0:03:00]}  g6 {[%clk 0:03:00]} 3. g3 {[%clk 0:03:00]}  Bg7 {[%clk 0:03:01]} 4. Bg2 {[%clk 0:03:01]}  O-O {[%clk 0:03:02]} 5. e3 {[%clk 0:03:01]}  e5 {[%clk 0:03:00]} 6. Nge2 {[%clk 0:03:01]}  c6 {[%clk 0:02:52]} 7. d4 {[%clk 0:02:54]}  exd4 {[%clk 0:02:43]} 8. exd4 {[%clk 0:02:54]}  d5 {[%clk 0:02:16]} 9. Bg5 {[%clk 0:02:24]}  dxc4 {[%clk 0:02:13]} 10. O-O {[%clk 0:02:09]}  h6 {[%clk 0:01:52]} 11. Bf4 {[%clk 0:02:06]}  Be6 {[%clk 0:01:49]} 12. Qd2 {[%clk 0:02:01]}  g5 {[%clk 0:01:44]} 13. Be5 {[%clk 0:02:01]}  Nbd7 {[%clk 0:01:43]} 14. Bd6 {[%clk 0:01:55]}  Re8 {[%clk 0:01:43]} 15. Rad1 {[%clk 0:01:48]}  Nb6 {[%clk 0:01:41]} 16. Be5 {[%clk 0:01:48]}  Nbd5 {[%clk 0:01:41]} 17. Rfe1 {[%clk 0:01:45]}  Qd7 {[%clk 0:01:35]} 18. Na4 {[%clk 0:01:37]}  b6 {[%clk 0:01:29]} 19. Rc1 {[%clk 0:01:35]}  Ne7 {[%clk 0:01:18]} 20. Nec3 {[%clk 0:01:24]}  Ng6 {[%clk 0:01:10]} 21. Qe2 {[%clk 0:01:08]}  Nxe5 {[%clk 0:01:02]} 22. dxe5 {[%clk 0:01:08]}  Nd5 {[%clk 0:01:03]} 23. Ne4 {[%clk 0:01:03]}  Qe7 {[%clk 0:00:55]} 24. Nd6 {[%clk 0:00:56]}  Red8 {[%clk 0:00:52]} 25. Nxc4 {[%clk 0:00:49]}  b5 {[%clk 0:00:52]} 26. Na5 {[%clk 0:00:49]}  bxa4 {[%clk 0:00:36]} 27. Nxc6 {[%clk 0:00:49]}  Qe8 {[%clk 0:00:25]} 28. Nxd8 {[%clk 0:00:47]}  Rxd8 {[%clk 0:00:26]} 29. Qa6 {[%clk 0:00:44]}  Rb8 {[%clk 0:00:15]} 30. Re2 {[%clk 0:00:36]}  Qe7 {[%clk 0:00:13]} 31. Rd2 {[%clk 0:00:33]}  Rb6 {[%clk 0:00:14]} 32. Qxa4 {[%clk 0:00:31]}  Nb4 {[%clk 0:00:11]} 33. a3 {[%clk 0:00:24]}  Na2 {[%clk 0:00:07]} 34. Rcd1 {[%clk 0:00:22]}  Bxe5 {[%clk 0:00:07]} 35. Qe4 {[%clk 0:00:17]}  Kg7 {[%clk 0:00:06]} 36. Qe2 {[%clk 0:00:12]}  Qf6 {[%clk 0:00:05]} 37. Re1 {[%clk 0:00:09]}  Bxb2 {[%clk 0:00:05]} 38. Rb1 {[%clk 0:00:08]}  Nc3 {[%clk 0:00:05]} 39. Qf1 {[%clk 0:00:04]}  Nxb1 {[%clk 0:00:05]} 40. Qxb1 {[%clk 0:00:04]}  Bc3 {[%clk 0:00:05]} 41. Qd1 {[%clk 0:00:03]}  Bxd2 {[%clk 0:00:06]} 42. Qxd2 {[%clk 0:00:04]}  Rb1+ {[%clk 0:00:06]} 43. Bf1 {[%clk 0:00:04]}  Qa1 {[%clk 0:00:05]} 44. Kg2 {[%clk 0:00:03]}  Rxf1 {[%clk 0:00:05]} 45. Kf3 {[%clk 0:00:04]}  Rd1 {[%clk 0:00:05]} 46. Qe3 {[%clk 0:00:02]}  Bd5+ {[%clk 0:00:05]} 47. Kg4 {[%clk 0:00:02]}  Qd4+ {[%clk 0:00:06]} 48. Qxd4+ {[%clk 0:00:02]}  Rxd4+ {[%clk 0:00:07]} 49. f4 {[%clk 0:00:03]}  Ra4 {[%clk 0:00:07]} 50. Kh5 {[%clk 0:00:03]}  gxf4 {[%clk 0:00:08]} 51. h3 {[%clk 0:00:04]}  Rxa3 {[%clk 0:00:09]} 52. g4 {[%clk 0:00:05]}  Rxh3# {[%clk 0:00:09]} 0-1


[Site "https://www.chess.com"]

[Event "Titled Tuesday Blitz May 30 Early 2023"]
[White "Barbot, Pierre"]
[Black "zano2023"]
[WhiteFideId "663727"]
[WhiteElo "2431"]
[BlackElo "2179"]
[Result "1-0"]
[Round "11"]
[TimeControl "180+2"]
[Date "2023.05.30"]
[WhiteClock "0:00:04"]
[BlackClock "0:00:04"]

1. d4 {[%clk 0:03:00]}  e5 {[%clk 0:02:56]} 2. dxe5 {[%clk 0:02:59]}  d6 {[%clk 0:02:56]} 3. exd6 {[%clk 0:03:00]}  Bxd6 {[%clk 0:02:57]} 4. Nf3 {[%clk 0:02:58]}  Bg4 {[%clk 0:02:56]} 5. g3 {[%clk 0:02:57]}  Nc6 {[%clk 0:02:56]} 6. Bg2 {[%clk 0:02:57]}  Qe7 {[%clk 0:02:56]} 7. O-O {[%clk 0:02:57]}  O-O-O {[%clk 0:02:56]} 8. Qe1 {[%clk 0:02:35]}  Nf6 {[%clk 0:02:54]} 9. Nc3 {[%clk 0:02:22]}  h6 {[%clk 0:02:54]} 10. Nb5 {[%clk 0:02:15]}  Bc5 {[%clk 0:02:53]} 11. Bf4 {[%clk 0:02:01]}  Nd5 {[%clk 0:02:46]} 12. Rd1 {[%clk 0:01:55]}  Nxf4 {[%clk 0:02:45]} 13. gxf4 {[%clk 0:01:56]}  a6 {[%clk 0:02:40]} 14. Nc3 {[%clk 0:01:51]}  Rxd1 {[%clk 0:02:31]} 15. Qxd1 {[%clk 0:01:51]}  Rd8 {[%clk 0:02:32]} 16. Nd5 {[%clk 0:01:41]}  Qe6 {[%clk 0:02:28]} 17. c4 {[%clk 0:01:32]}  g5 {[%clk 0:02:06]} 18. fxg5 {[%clk 0:00:45]}  Bh3 {[%clk 0:02:00]} 19. Qd3 {[%clk 0:00:38]}  Qg4 {[%clk 0:01:48]} 20. Ne1 {[%clk 0:00:30]}  Bxg2 {[%clk 0:01:44]} 21. Nxg2 {[%clk 0:00:31]}  Ne5 {[%clk 0:01:37]} 22. Qc3 {[%clk 0:00:08]}  Bd4 {[%clk 0:01:25]} 23. Qa5 {[%clk 0:00:07]}  Bb6 {[%clk 0:01:16]} 24. Nxb6+ {[%clk 0:00:07]}  cxb6 {[%clk 0:01:16]} 25. Qxe5 {[%clk 0:00:07]}  hxg5 {[%clk 0:01:10]} 26. Qg3 {[%clk 0:00:07]}  Qxe2 {[%clk 0:01:05]} 27. Ne3 {[%clk 0:00:05]}  Qxb2 {[%clk 0:00:45]} 28. Qg4+ {[%clk 0:00:03]}  Kb8 {[%clk 0:00:43]} 29. Rd1 {[%clk 0:00:03]}  Rxd1+ {[%clk 0:00:36]} 30. Qxd1 {[%clk 0:00:04]}  Qxa2 {[%clk 0:00:34]} 31. Qd8+ {[%clk 0:00:04]}  Ka7 {[%clk 0:00:34]} 32. Qxg5 {[%clk 0:00:05]}  Qb1+ {[%clk 0:00:32]} 33. Kg2 {[%clk 0:00:04]}  Qe4+ {[%clk 0:00:32]} 34. Kf1 {[%clk 0:00:04]}  Qd3+ {[%clk 0:00:32]} 35. Ke1 {[%clk 0:00:03]}  Qc3+ {[%clk 0:00:32]} 36. Ke2 {[%clk 0:00:03]}  Qb2+ {[%clk 0:00:32]} 37. Kf3 {[%clk 0:00:04]}  f6 {[%clk 0:00:32]} 38. Qf4 {[%clk 0:00:04]}  Qc3 {[%clk 0:00:30]} 39. h4 {[%clk 0:00:04]}  a5 {[%clk 0:00:29]} 40. h5 {[%clk 0:00:04]}  a4 {[%clk 0:00:28]} 41. h6 {[%clk 0:00:04]}  Qd3 {[%clk 0:00:28]} 42. Qf5 {[%clk 0:00:02]}  Qd8 {[%clk 0:00:23]} 43. h7 {[%clk 0:00:01]}  a3 {[%clk 0:00:23]} 44. Qd5 {[%clk 0:00:01]}  Qh8 {[%clk 0:00:20]} 45. Qd3 {[%clk 0:00:01]}  Qg7 {[%clk 0:00:18]} 46. Qxa3+ {[%clk 0:00:01]}  Kb8 {[%clk 0:00:19]} 47. Qd3 {[%clk 0:00:02]}  Ka7 {[%clk 0:00:18]} 48. Qf5 {[%clk 0:00:02]}  Qh6 {[%clk 0:00:17]} 49. Ng4 {[%clk 0:00:02]}  Qh3+ {[%clk 0:00:17]} 50. Kf4 {[%clk 0:00:03]}  Qh4 {[%clk 0:00:16]} 51. Qxf6 {[%clk 0:00:03]}  Qh5 {[%clk 0:00:15]} 52. h8=Q {[%clk 0:00:03]}  Qxg4+ {[%clk 0:00:13]} 53. Kxg4 {[%clk 0:00:03]}  b5 {[%clk 0:00:04]} 54. Qa1+ {[%clk 0:00:04]}  Kb6 {[%clk 0:00:04]} 55. Qhd4+ {[%clk 0:00:04]}  Kc7 {[%clk 0:00:04]} 56. Qc5+ {[%clk 0:00:04]}  Kd8 {[%clk 0:00:03]} 57. Qf6+ {[%clk 0:00:04]}  Kd7 {[%clk 0:00:04]} 58. Qfe7# {[%clk 0:00:04]} 1-0


[Site "https://www.chess.com"]

[Event "Titled Tuesday Blitz May 30 Early 2023"]
[White "Sharapov, Evgeny"]
[Black "Kuznetsov, Mikhail"]
[WhiteFideId "14103133"]
[BlackFideId "4117190"]
[WhiteElo "2367"]
[BlackElo "1981"]
[Result "0-1"]
[Round "11"]
[TimeControl "180+2"]
[Date "2023.05.30"]
[WhiteClock "0:00:32"]
[BlackClock "0:00:54"]

1. e4 {[%clk 0:02:59]}  c6 {[%clk 0:02:59]} 2. d4 {[%clk 0:02:59]}  d5 {[%clk 0:03:00]} 3. e5 {[%clk 0:03:00]}  Bf5 {[%clk 0:02:59]} 4. Be3 {[%clk 0:02:59]}  e6 {[%clk 0:02:58]} 5. c4 {[%clk 0:02:59]}  Ne7 {[%clk 0:02:54]} 6. Nc3 {[%clk 0:02:59]}  dxc4 {[%clk 0:02:52]} 7. Bxc4 {[%clk 0:02:58]}  Nd5 {[%clk 0:02:53]} 8. Nge2 {[%clk 0:02:57]}  Nd7 {[%clk 0:02:51]} 9. O-O {[%clk 0:02:56]}  Be7 {[%clk 0:02:50]} 10. Ng3 {[%clk 0:02:55]}  Bg6 {[%clk 0:02:47]} 11. Nce4 {[%clk 0:02:55]}  O-O {[%clk 0:02:44]} 12. Qg4 {[%clk 0:02:54]}  c5 {[%clk 0:02:34]} 13. Bxd5 {[%clk 0:02:46]}  exd5 {[%clk 0:02:32]} 14. Nxc5 {[%clk 0:02:42]}  Bxc5 {[%clk 0:02:29]} 15. dxc5 {[%clk 0:02:42]}  Nxe5 {[%clk 0:02:29]} 16. Qd4 {[%clk 0:02:37]}  Nc6 {[%clk 0:02:27]} 17. Qd2 {[%clk 0:02:36]}  d4 {[%clk 0:02:26]} 18. Bf4 {[%clk 0:02:36]}  Qd5 {[%clk 0:02:20]} 19. Bd6 {[%clk 0:02:33]}  Rfe8 {[%clk 0:02:19]} 20. Rfe1 {[%clk 0:02:32]}  h5 {[%clk 0:02:16]} 21. h4 {[%clk 0:02:28]}  d3 {[%clk 0:02:10]} 22. Nf1 {[%clk 0:02:07]}  Nd4 {[%clk 0:02:08]} 23. Ne3 {[%clk 0:02:06]}  Qc6 {[%clk 0:02:02]} 24. Rad1 {[%clk 0:01:57]}  Be4 {[%clk 0:01:59]} 25. Kf1 {[%clk 0:01:29]}  Re6 {[%clk 0:01:23]} 26. f3 {[%clk 0:01:28]}  Bxf3 {[%clk 0:01:10]} 27. gxf3 {[%clk 0:01:28]}  Qxf3+ {[%clk 0:01:10]} 28. Kg1 {[%clk 0:01:18]}  Ne2+ {[%clk 0:01:05]} 29. Rxe2 {[%clk 0:00:46]}  dxe2 {[%clk 0:01:03]} 30. Re1 {[%clk 0:00:44]}  Rxe3 {[%clk 0:01:00]} 31. Qd4 {[%clk 0:00:32]}  Re4 {[%clk 0:00:54]} 0-1


[Site "https://www.chess.com"]

[Event "Titled Tuesday Blitz May 30 Early 2023"]
[White "Jegorovas, Aleksandras"]
[Black "February, Jesse Nikki"]
[WhiteFideId "12801950"]
[BlackFideId "14312336"]
[WhiteElo "2247"]
[BlackElo "1824"]
[Result "1/2-1/2"]
[Round "11"]
[TimeControl "180+2"]
[Date "2023.05.30"]
[WhiteClock "0:00:21"]
[BlackClock "0:00:22"]

1. Nf3 {[%clk 0:03:00]}  d5 {[%clk 0:02:58]} 2. e3 {[%clk 0:02:59]}  c5 {[%clk 0:02:55]} 3. c4 {[%clk 0:02:56]}  e6 {[%clk 0:02:52]} 4. b3 {[%clk 0:02:49]}  Nc6 {[%clk 0:02:51]} 5. Bb2 {[%clk 0:02:48]}  Nf6 {[%clk 0:02:51]} 6. cxd5 {[%clk 0:02:43]}  exd5 {[%clk 0:02:50]} 7. Bb5 {[%clk 0:02:42]}  a6 {[%clk 0:02:49]} 8. Bxc6+ {[%clk 0:02:42]}  bxc6 {[%clk 0:02:50]} 9. O-O {[%clk 0:02:42]}  Bg4 {[%clk 0:02:47]} 10. d4 {[%clk 0:02:36]}  cxd4 {[%clk 0:02:46]} 11. Qxd4 {[%clk 0:02:33]}  Bxf3 {[%clk 0:02:42]} 12. gxf3 {[%clk 0:02:33]}  Bd6 {[%clk 0:02:42]} 13. Nd2 {[%clk 0:02:29]}  c5 {[%clk 0:02:25]} 14. Qa4+ {[%clk 0:02:25]}  Qd7 {[%clk 0:02:14]} 15. Qxd7+ {[%clk 0:02:17]}  Kxd7 {[%clk 0:02:15]} 16. Bxf6 {[%clk 0:02:17]}  gxf6 {[%clk 0:02:15]} 17. Rfd1 {[%clk 0:02:01]}  Rhg8+ {[%clk 0:02:14]} 18. Kh1 {[%clk 0:01:58]}  Rg5 {[%clk 0:02:14]} 19. f4 {[%clk 0:01:56]}  Rh5 {[%clk 0:02:13]} 20. Nf1 {[%clk 0:01:45]}  d4 {[%clk 0:02:08]} 21. Ng3 {[%clk 0:01:43]}  Rh4 {[%clk 0:01:52]} 22. Nf5 {[%clk 0:01:43]}  Rg4 {[%clk 0:01:48]} 23. h3 {[%clk 0:01:41]}  Rg6 {[%clk 0:01:39]} 24. exd4 {[%clk 0:01:40]}  Bxf4 {[%clk 0:01:36]} 25. dxc5+ {[%clk 0:01:38]}  Kc7 {[%clk 0:01:36]} 26. Ne7 {[%clk 0:01:33]}  Be5 {[%clk 0:01:15]} 27. Nxg6 {[%clk 0:01:32]}  Bxa1 {[%clk 0:01:15]} 28. Ne7 {[%clk 0:01:19]}  Be5 {[%clk 0:01:06]} 29. Kg2 {[%clk 0:01:18]}  Re8 {[%clk 0:01:02]} 30. Nf5 {[%clk 0:01:16]}  Rg8+ {[%clk 0:01:02]} 31. Kf3 {[%clk 0:01:15]}  Rg5 {[%clk 0:00:57]} 32. Ne3 {[%clk 0:01:15]}  Rh5 {[%clk 0:00:53]} 33. b4 {[%clk 0:01:08]}  Rxh3+ {[%clk 0:00:52]} 34. Ke4 {[%clk 0:01:08]}  Rh4+ {[%clk 0:00:52]} 35. Kf3 {[%clk 0:00:59]}  Rf4+ {[%clk 0:00:49]} 36. Ke2 {[%clk 0:00:59]}  Rd4 {[%clk 0:00:46]} 37. Rxd4 {[%clk 0:00:55]}  Bxd4 {[%clk 0:00:46]} 38. Nf5 {[%clk 0:00:51]}  Bc3 {[%clk 0:00:46]} 39. a3 {[%clk 0:00:49]}  Bb2 {[%clk 0:00:46]} 40. a4 {[%clk 0:00:49]}  Ba3 {[%clk 0:00:45]} 41. Ne3 {[%clk 0:00:40]}  Kc6 {[%clk 0:00:39]} 42. Nc2 {[%clk 0:00:38]}  Bb2 {[%clk 0:00:39]} 43. Kd3 {[%clk 0:00:39]}  h5 {[%clk 0:00:38]} 44. Kc4 {[%clk 0:00:37]}  h4 {[%clk 0:00:36]} 45. Ne3 {[%clk 0:00:29]}  h3 {[%clk 0:00:31]} 46. b5+ {[%clk 0:00:29]}  axb5+ {[%clk 0:00:30]} 47. axb5+ {[%clk 0:00:29]}  Kb7 {[%clk 0:00:31]} 48. c6+ {[%clk 0:00:20]}  Kc8 {[%clk 0:00:29]} 49. Ng4 {[%clk 0:00:18]}  Be5 {[%clk 0:00:27]} 50. f4 {[%clk 0:00:15]}  Bxf4 {[%clk 0:00:25]} 51. b6 {[%clk 0:00:16]}  h2 {[%clk 0:00:24]} 52. Nxh2 {[%clk 0:00:16]}  Bxh2 {[%clk 0:00:25]} 53. Kd5 {[%clk 0:00:16]}  f5 {[%clk 0:00:21]} 54. c7 {[%clk 0:00:15]}  Bxc7 {[%clk 0:00:10]} 55. bxc7 {[%clk 0:00:15]}  Kxc7 {[%clk 0:00:11]} 56. Ke5 {[%clk 0:00:15]}  Kd7 {[%clk 0:00:10]} 57. Kxf5 {[%clk 0:00:16]}  Ke7 {[%clk 0:00:10]} 58. Ke5 {[%clk 0:00:16]}  f6+ {[%clk 0:00:10]} 59. Kf5 {[%clk 0:00:16]}  Kf7 {[%clk 0:00:11]} 60. Kf4 {[%clk 0:00:17]}  Ke6 {[%clk 0:00:12]} 61. Ke4 {[%clk 0:00:17]}  f5+ {[%clk 0:00:13]} 62. Kf4 {[%clk 0:00:17]}  Kf6 {[%clk 0:00:14]} 63. Kf3 {[%clk 0:00:18]}  Ke5 {[%clk 0:00:14]} 64. Ke3 {[%clk 0:00:18]}  f4+ {[%clk 0:00:15]} 65. Kf3 {[%clk 0:00:18]}  Kf5 {[%clk 0:00:16]} 66. Kf2 {[%clk 0:00:19]}  Ke4 {[%clk 0:00:17]} 67. Ke2 {[%clk 0:00:19]}  f3+ {[%clk 0:00:18]} 68. Kf2 {[%clk 0:00:20]}  Kf4 {[%clk 0:00:19]} 69. Kf1 {[%clk 0:00:20]}  Ke3 {[%clk 0:00:20]} 70. Ke1 {[%clk 0:00:20]}  f2+ {[%clk 0:00:21]} 71. Kf1 {[%clk 0:00:21]}  Kf3 {[%clk 0:00:22]} 1/2-1/2


[Site "https://www.chess.com"]

[Event "Titled Tuesday Blitz May 30 Early 2023"]
[White "Bashkansky, Ethan"]
[Black "Herman, Daniel"]
[WhiteFideId "2071533"]
[BlackFideId "30935008"]
[WhiteElo "2327"]
[BlackElo "1897"]
[Result "0-1"]
[Round "11"]
[TimeControl "180+2"]
[Date "2023.05.30"]
[WhiteClock "0:00:04"]
[BlackClock "0:00:09"]

1. d4 {[%clk 0:03:00]}  Nf6 {[%clk 0:02:56]} 2. c4 {[%clk 0:03:01]}  e6 {[%clk 0:02:57]} 3. Nc3 {[%clk 0:03:01]}  Bb4 {[%clk 0:02:56]} 4. Qc2 {[%clk 0:03:02]}  d5 {[%clk 0:02:55]} 5. cxd5 {[%clk 0:03:02]}  Qxd5 {[%clk 0:02:56]} 6. Nf3 {[%clk 0:02:59]}  O-O {[%clk 0:02:53]} 7. Bd2 {[%clk 0:02:57]}  Bxc3 {[%clk 0:02:49]} 8. Bxc3 {[%clk 0:02:57]}  Qf5 {[%clk 0:02:42]} 9. Qxf5 {[%clk 0:02:54]}  exf5 {[%clk 0:02:43]} 10. e3 {[%clk 0:02:41]}  Be6 {[%clk 0:02:41]} 11. Bd3 {[%clk 0:02:39]}  Nbd7 {[%clk 0:02:40]} 12. O-O {[%clk 0:02:34]}  g6 {[%clk 0:02:39]} 13. a3 {[%clk 0:02:27]}  Rfe8 {[%clk 0:02:31]} 14. Rac1 {[%clk 0:02:25]}  c6 {[%clk 0:02:31]} 15. Bb4 {[%clk 0:02:21]}  Ne4 {[%clk 0:02:27]} 16. Nd2 {[%clk 0:02:14]}  Bd5 {[%clk 0:02:23]} 17. Nxe4 {[%clk 0:02:03]}  fxe4 {[%clk 0:02:21]} 18. Be2 {[%clk 0:02:02]}  a5 {[%clk 0:02:13]} 19. Bc5 {[%clk 0:01:56]}  a4 {[%clk 0:02:08]} 20. Rc3 {[%clk 0:01:51]}  f5 {[%clk 0:01:59]} 21. Bd1 {[%clk 0:01:47]}  Kg7 {[%clk 0:01:27]} 22. h4 {[%clk 0:01:47]}  Nf6 {[%clk 0:01:21]} 23. Bd6 {[%clk 0:01:45]}  Be6 {[%clk 0:01:14]} 24. Be5 {[%clk 0:01:43]}  Kf7 {[%clk 0:01:14]} 25. Bxf6 {[%clk 0:01:43]}  Kxf6 {[%clk 0:01:15]} 26. Rc5 {[%clk 0:01:39]}  Bd5 {[%clk 0:01:08]} 27. Rc3 {[%clk 0:01:30]}  h6 {[%clk 0:01:05]} 28. g3 {[%clk 0:01:27]}  g5 {[%clk 0:01:04]} 29. hxg5+ {[%clk 0:01:26]}  hxg5 {[%clk 0:01:05]} 30. Kg2 {[%clk 0:01:24]}  Rh8 {[%clk 0:01:01]} 31. Rh1 {[%clk 0:01:23]}  Rxh1 {[%clk 0:00:59]} 32. Kxh1 {[%clk 0:01:23]}  Ke6 {[%clk 0:00:36]} 33. Kg2 {[%clk 0:01:21]}  b5 {[%clk 0:00:33]} 34. Be2 {[%clk 0:01:13]}  Rf8 {[%clk 0:00:30]} 35. Rc1 {[%clk 0:01:11]}  f4 {[%clk 0:00:30]} 36. Bg4+ {[%clk 0:01:11]}  Kd6 {[%clk 0:00:28]} 37. Rh1 {[%clk 0:01:01]}  f3+ {[%clk 0:00:26]} 38. Kf1 {[%clk 0:00:58]}  Bc4+ {[%clk 0:00:24]} 39. Ke1 {[%clk 0:00:57]}  Bd3 {[%clk 0:00:21]} 40. Kd2 {[%clk 0:00:56]}  Rf6 {[%clk 0:00:17]} 41. Rh8 {[%clk 0:00:55]}  c5 {[%clk 0:00:16]} 42. Rd8+ {[%clk 0:00:54]}  Ke7 {[%clk 0:00:14]} 43. Rd7+ {[%clk 0:00:53]}  Ke8 {[%clk 0:00:15]} 44. dxc5 {[%clk 0:00:53]}  Rh6 {[%clk 0:00:12]} 45. Kc3 {[%clk 0:00:35]}  Rh2 {[%clk 0:00:09]} 46. c6 {[%clk 0:00:36]}  Rxf2 {[%clk 0:00:09]} 47. Rxd3 {[%clk 0:00:10]}  exd3 {[%clk 0:00:08]} 48. Kxd3 {[%clk 0:00:11]}  Kd8 {[%clk 0:00:06]} 49. Kc3 {[%clk 0:00:05]}  Kc7 {[%clk 0:00:07]} 50. Bd7 {[%clk 0:00:02]}  Re2 {[%clk 0:00:07]} 51. Bg4 {[%clk 0:00:01]}  Rxe3+ {[%clk 0:00:06]} 52. Kd2 {[%clk 0:00:02]}  Re2+ {[%clk 0:00:06]} 53. Kd3 {[%clk 0:00:02]}  Rxb2 {[%clk 0:00:06]} 54. Bxf3 {[%clk 0:00:03]}  Rb3+ {[%clk 0:00:06]} 55. Ke4 {[%clk 0:00:04]}  Rxa3 {[%clk 0:00:07]} 56. Bg2 {[%clk 0:00:04]}  Rxg3 {[%clk 0:00:07]} 57. Bf3 {[%clk 0:00:04]}  a3 {[%clk 0:00:07]} 58. Bd1 {[%clk 0:00:02]}  a2 {[%clk 0:00:07]} 59. Bc2 {[%clk 0:00:02]}  a1=Q {[%clk 0:00:07]} 60. Kd5 {[%clk 0:00:02]}  Rd3+ {[%clk 0:00:06]} 61. Ke6 {[%clk 0:00:03]}  Qe1+ {[%clk 0:00:06]} 62. Kf5 {[%clk 0:00:03]}  Rf3+ {[%clk 0:00:06]} 63. Kg4 {[%clk 0:00:03]}  Qg3+ {[%clk 0:00:07]} 64. Kh5 {[%clk 0:00:04]}  Rf4 {[%clk 0:00:07]} 65. Kg6 {[%clk 0:00:04]}  Rh4 {[%clk 0:00:08]} 66. Kf5 {[%clk 0:00:04]}  g4 {[%clk 0:00:09]} 67. Kg5 {[%clk 0:00:05]}  Qf3 {[%clk 0:00:10]} 68. Kg6 {[%clk 0:00:05]}  g3 {[%clk 0:00:11]} 69. Kg7 {[%clk 0:00:05]}  Rg4+ {[%clk 0:00:11]} 70. Bg6 {[%clk 0:00:05]}  g2 {[%clk 0:00:12]} 71. Kh6 {[%clk 0:00:05]}  Qf4+ {[%clk 0:00:09]} 72. Kh7 {[%clk 0:00:05]}  Qf6 {[%clk 0:00:09]} 73. Kg8 {[%clk 0:00:04]}  Qxg6+ {[%clk 0:00:08]} 74. Kh8 {[%clk 0:00:04]}  Qg7# {[%clk 0:00:09]} 0-1


[Site "https://www.chess.com"]

[Event "Titled Tuesday Blitz May 30 Early 2023"]
[White "Schuh, Karsten"]
[Black "Mikhaylova, Irina"]
[WhiteFideId "4637950"]
[BlackFideId "4109040"]
[WhiteElo "2138"]
[BlackElo "1975"]
[Result "1-0"]
[Round "11"]
[TimeControl "180+2"]
[Date "2023.05.30"]
[WhiteClock "0:00:16"]
[BlackClock "0:00:06"]

1. Nf3 {[%clk 0:03:00]}  Nf6 {[%clk 0:02:59]} 2. c4 {[%clk 0:02:59]}  g6 {[%clk 0:03:00]} 3. b4 {[%clk 0:02:59]}  Bg7 {[%clk 0:02:59]} 4. Bb2 {[%clk 0:02:59]}  O-O {[%clk 0:03:00]} 5. g3 {[%clk 0:03:00]}  c6 {[%clk 0:03:00]} 6. Bg2 {[%clk 0:02:59]}  d5 {[%clk 0:03:00]} 7. Na3 {[%clk 0:02:59]}  Be6 {[%clk 0:02:59]} 8. Nd4 {[%clk 0:02:44]}  Bc8 {[%clk 0:02:53]} 9. Nf3 {[%clk 0:02:38]}  Be6 {[%clk 0:02:52]} 10. Qc2 {[%clk 0:02:30]}  Bf5 {[%clk 0:02:47]} 11. d3 {[%clk 0:02:29]}  a5 {[%clk 0:02:27]} 12. b5 {[%clk 0:02:28]}  dxc4 {[%clk 0:01:49]} 13. Qxc4 {[%clk 0:02:22]}  cxb5 {[%clk 0:01:47]} 14. Qxb5 {[%clk 0:02:18]}  Nc6 {[%clk 0:01:47]} 15. O-O {[%clk 0:02:15]}  a4 {[%clk 0:01:30]} 16. Nc4 {[%clk 0:02:07]}  a3 {[%clk 0:00:59]} 17. Nxa3 {[%clk 0:01:42]}  Qa5 {[%clk 0:00:44]} 18. Qxa5 {[%clk 0:01:39]}  Nxa5 {[%clk 0:00:42]} 19. Rfc1 {[%clk 0:01:24]}  Rac8 {[%clk 0:00:41]} 20. Nd2 {[%clk 0:01:11]}  Be6 {[%clk 0:00:36]} 21. Nac4 {[%clk 0:01:06]}  Bd5 {[%clk 0:00:35]} 22. Bxd5 {[%clk 0:01:03]}  Nxd5 {[%clk 0:00:34]} 23. Bxg7 {[%clk 0:01:03]}  Kxg7 {[%clk 0:00:33]} 24. Rab1 {[%clk 0:01:03]}  Ra8 {[%clk 0:00:16]} 25. a3 {[%clk 0:00:59]}  Nxc4 {[%clk 0:00:15]} 26. Nxc4 {[%clk 0:00:58]}  b6 {[%clk 0:00:15]} 27. Rb5 {[%clk 0:00:57]}  e6 {[%clk 0:00:13]} 28. Rb3 {[%clk 0:00:56]}  Rfc8 {[%clk 0:00:13]} 29. Rcb1 {[%clk 0:00:56]}  Rc6 {[%clk 0:00:12]} 30. e4 {[%clk 0:00:54]}  Nc7 {[%clk 0:00:13]} 31. Rxb6 {[%clk 0:00:54]}  Rxb6 {[%clk 0:00:12]} 32. Rxb6 {[%clk 0:00:54]}  Na6 {[%clk 0:00:13]} 33. Rb5 {[%clk 0:00:53]}  Rc8 {[%clk 0:00:12]} 34. a4 {[%clk 0:00:52]}  Nc5 {[%clk 0:00:12]} 35. Ne5 {[%clk 0:00:49]}  Rc7 {[%clk 0:00:10]} 36. a5 {[%clk 0:00:48]}  f6 {[%clk 0:00:10]} 37. Nc4 {[%clk 0:00:46]}  Nxd3 {[%clk 0:00:10]} 38. Nd6 {[%clk 0:00:43]}  Ra7 {[%clk 0:00:09]} 39. Nc8 {[%clk 0:00:40]}  Rc7 {[%clk 0:00:08]} 40. Nd6 {[%clk 0:00:38]}  Ra7 {[%clk 0:00:08]} 41. Kf1 {[%clk 0:00:37]}  Ne5 {[%clk 0:00:08]} 42. f4 {[%clk 0:00:36]}  Nc6 {[%clk 0:00:08]} 43. Nc4 {[%clk 0:00:34]}  Rc7 {[%clk 0:00:08]} 44. a6 {[%clk 0:00:33]}  Ra7 {[%clk 0:00:08]} 45. Rb7+ {[%clk 0:00:32]}  Rxb7 {[%clk 0:00:08]} 46. axb7 {[%clk 0:00:32]}  Nb8 {[%clk 0:00:09]} 47. Ke2 {[%clk 0:00:32]}  Kf7 {[%clk 0:00:09]} 48. Kd3 {[%clk 0:00:32]}  Ke7 {[%clk 0:00:10]} 49. Kd4 {[%clk 0:00:33]}  Kd7 {[%clk 0:00:11]} 50. Kc5 {[%clk 0:00:32]}  Kc7 {[%clk 0:00:11]} 51. Na5 {[%clk 0:00:31]}  Nd7+ {[%clk 0:00:10]} 52. Kd4 {[%clk 0:00:31]}  Nb8 {[%clk 0:00:10]} 53. f5 {[%clk 0:00:29]}  exf5 {[%clk 0:00:10]} 54. exf5 {[%clk 0:00:30]}  gxf5 {[%clk 0:00:10]} 55. Kd5 {[%clk 0:00:30]}  Kb6 {[%clk 0:00:11]} 56. Nc4+ {[%clk 0:00:29]}  Kxb7 {[%clk 0:00:11]} 57. Ke6 {[%clk 0:00:29]}  Kc6 {[%clk 0:00:11]} 58. Kxf5 {[%clk 0:00:29]}  Kd5 {[%clk 0:00:12]} 59. Nb6+ {[%clk 0:00:29]}  Kd6 {[%clk 0:00:11]} 60. Kxf6 {[%clk 0:00:29]}  Nc6 {[%clk 0:00:11]} 61. Kg7 {[%clk 0:00:29]}  Ne5 {[%clk 0:00:11]} 62. Kxh7 {[%clk 0:00:29]}  Nf3 {[%clk 0:00:12]} 63. h4 {[%clk 0:00:28]}  Ke5 {[%clk 0:00:12]} 64. h5 {[%clk 0:00:28]}  Kf5 {[%clk 0:00:13]} 65. h6 {[%clk 0:00:27]}  Kg4 {[%clk 0:00:13]} 66. Kg7 {[%clk 0:00:26]}  Ng5 {[%clk 0:00:13]} 67. Nd5 {[%clk 0:00:24]}  Ne6+ {[%clk 0:00:12]} 68. Kf6 {[%clk 0:00:23]}  Ng5 {[%clk 0:00:12]} 69. Kg6 {[%clk 0:00:18]}  Ne6 {[%clk 0:00:10]} 70. Nf6+ {[%clk 0:00:18]}  Kxg3 {[%clk 0:00:10]} 71. Kf5 {[%clk 0:00:15]}  Nf8 {[%clk 0:00:10]} 72. Nd7 {[%clk 0:00:15]}  Nh7 {[%clk 0:00:10]} 73. Kg6 {[%clk 0:00:15]}  Kh4 {[%clk 0:00:09]} 74. Kxh7 {[%clk 0:00:15]}  Kg5 {[%clk 0:00:06]} 75. Kg7 {[%clk 0:00:16]} 1-0


[Site "https://www.chess.com"]